[Event "CCT Chessable Masters Playoffs 2025"]
[Site "Online"]
[Date "2025.02.19"]
[Round "3"]
[White "Nakamura, Hikaru"]
[Black "Firouzja, Alireza"]
[Result "1/2-1/2"]
[Annotator "TA"]
[ECO "A06"]
[WhiteElo "2802"]
[BlackElo "2760"]
[PlyCount "31"]
[EventDate "2025.02.13"]
[EventType "k.o."]
[EventCountry "NET"]
[SourceTitle "playchess.com"]
[Source "ChessBase"]
[SourceQuality "1"]
[TimeControl "600"]

{[%evp 9,31,4,39,0,0,0,0,0,0,0,0,0,0,0,0,0,0,0,0,0,0,0,0,0]} 1. b3 {[%emt 0:00:01]} d5 {[%emt 0:00:03]} 2. Bb2 {[%emt 0:00:00]} Nf6 {[%emt 0:00:02]} 3. Nf3 {[%emt 0:00:00]} Bf5 {[%emt 0:00:01]} (3... e6 4. e3 Be7 5. d4 O-O 6. Bd3 b6 7. c4 Bb7 8. Nbd2 Nbd7 9. cxd5 exd5 10. O-O Bd6 11. Rc1 Re8 12. Bf5 h6 13. Bh3 a5 14. Qc2 Ba6 {0-1 Nakamura,H (2787)-Firouzja,A (2777) Bullet Chess Winners blitz 2023 (4.13)}) 4. Nh4 {[%emt 0:00:01]} Bd7 {[%emt 0:00:00]} 5. c4 {[%emt 0:00:00]} Nc6 {[%emt 0:00:01]} 6. Nf3 {[%emt 0:00:00] A06: Réti Opening: 1 Nf3 d5.} (6. Bxf6 $5 exf6 7. cxd5 $14) 6... Bg4 {[%emt 0:00:02] The position is equal.} 7. e3 {[%emt 0:00:07]} d4 {[%emt 0:00:34]} 8. exd4 $146 {[%emt 0:00:33]} ({Predecessor:} 8. h3 Bxf3 9. Qxf3 e5 10. exd4 Nxd4 11. Bxd4 Qxd4 12. Qc3 Bc5 13. Qxd4 Bxd4 14. Nc3 Ne4 15. Rc1 Nxf2 16. Nb5 Nxh1 17. Nxc7+ {0-1 Delaney,R-Reilly,G EU-chT U18 6th 2006 (4)}) 8... Nxd4 {[%emt 0:00:43]} 9. Bxd4 {[%emt 0:03:12] [#] and Bb2 should not be overlooked} Bxf3 {[%emt 0:00:03]} 10. Qxf3 {[%emt 0:00:00]} Qxd4 {[%emt 0:00:01]} 11. Qxb7 {[%emt 0:00:05]} Rd8 {[%emt 0:00:06]} 12. Qc6+ {[%emt 0:00:07]} Rd7 {[%emt 0:00:10]} 13. Qa8+ {[%emt 0:00:01]} Rd8 {[%emt 0:00:02]} 14. Qc6+ {[%emt 0:00:00]} Rd7 {[%emt 0:00:18][%cal Oe7e6] [#] Hoping for ...e6!.} 15. Qa8+ {[%emt 0:00:07]} Rd8 {[%emt 0:00:01]} 16. Qc6+ {[%emt 0:00:00] A rather calm draw.   Weighted Error Value: White=0.07 (flawless) /Black=0.04 (flawless)   OK:         	White=2     	Black=3      Best:        	White=4     	Black=3} 1/2-1/2

[Event "CCT Chessable Masters Playoffs 2025"]
[Site "Online"]
[Date "2025.02.19"]
[Round "3"]
[White "Erigaisi Arjun"]
[Black "Carlsen, Magnus"]
[Result "1/2-1/2"]
[Annotator "TA"]
[ECO "C00"]
[WhiteElo "2801"]
[BlackElo "2833"]
[PlyCount "95"]
[EventDate "2025.02.13"]
[EventType "k.o."]
[EventCountry "NET"]
[SourceTitle "playchess.com"]
[Source "ChessBase"]
[SourceQuality "1"]
[TimeControl "600"]

{[%evp 18,95,27,-21,-29,-24,-8,-16,-8,-34,59,45,99,81,76,35,25,24,22,44,63,67,64,33,72,56,67,31,22,20,55,59,66,58,57,60,72,78,83,27,479,451,435,168,176,168,168,156,45,67,138,0,0,0,0,0,11,14,52,0,0,0,0,0,0,0,0,0,0,0,0,0,0,0,0,0,0,0,0,0]} 1. e4 {[%emt 0:00:00]} c5 {[%emt 0:00:01]} 2. Nf3 {[%emt 0:00:01]} e6 {[%emt 0:03:04]} 3. d3 {[%emt 0:00:03]} Nc6 {[%emt 0:00:03]} 4. g3 {[%emt 0:00:03]} d5 {[%emt 0:00:01]} 5. Qe2 {[%emt 0:00:00]} Be7 {[%emt 0:00:35]} 6. Bg2 {[%emt 0:00:01]} Nf6 {[%emt 0:00:01]} 7. O-O {[%emt 0:00:01]} b6 {[%emt 0:00:01]} 8. e5 {[%emt 0:00:05]} Nd7 {[%emt 0:00:01]} 9. c4 {[%emt 0:00:01]} d4 {[%emt 0:00:26]} 10. h4 {[%emt 0:00:11]} (10. Ne1 $142 Qc7 (10... Ndxe5 $2 11. f4 $18) 11. f4) 10... Bb7 $11 {[%emt 0:00:01] C00: French: Unusual White 2nd moves.} 11. Re1 {[%emt 0:00:01]} Qc7 {[%emt 0:00:02]} 12. Bf4 {[%emt 0:00:02]} h6 {[%emt 0:00:04]} 13. Nbd2 {[%emt 0:00:28]} O-O-O {[%emt 0:00:38]} ({Black should play} 13... Nf8 $1 $15) 14. Ne4 $1 $14 {[%emt 0:00:36]} Ncxe5 {[%emt 0:00:03]} (14... Ndxe5 15. Nxc5 Bxc5 16. Nxe5 $16 (16. Bxe5 Nxe5 17. Nxe5 Bxg2 $16)) (14... Nf8 $14) 15. Nxe5 $16 {[%emt 0:00:00]} Nxe5 {[%emt 0:00:01]} 16. Nxc5 {[%emt 0:00:06]} Bxg2 {[%emt 0:00:13]} 17. Bxe5 {[%emt 0:00:14]} Qxc5 {[%emt 0:00:03]} 18. Kxg2 {[%emt 0:00:00][%cal Oe2f3]} f6 $146 {[%emt 0:00:06]} (18... Qc6+ 19. Qe4 Qxe4+ 20. Rxe4 f6 21. Bxd4 e5 22. Be3 Rxd3 23. c5 bxc5 24. Rc1 Kb7 25. Bxc5 Rc8 26. Rb4+ Ka8 27. Bd6 {1-0 Druska,J (2311)-Hajek,L (2024) SVK-ch U18 Lubovnianske Kupele 2012 (9)}) 19. Bf4 {[%emt 0:00:04]} Qc6+ {[%emt 0:00:04]} 20. Kh2 {[%emt 0:00:16]} g5 {[%emt 0:00:19]} 21. Bd2 {[%emt 0:00:15]} (21. Qxe6+ Qxe6 22. Rxe6 Kd7 23. Rxe7+ (23. Rae1 $2 Bb4 $19) 23... Kxe7 $19) 21... e5 {[%emt 0:00:02]} 22. h5 {[%emt 0:00:04]} Rhe8 {[%emt 0:00:07]} 23. b4 {[%emt 0:00:05][%cal Bb2b4,Bb4b5][%mdl 32]} Kb8 {[%emt 0:00:03]} 24. a4 $36 {[%emt 0:00:04][%mdl 2048] Black is under pressure.} Bd6 {[%emt 0:00:23]} 25. b5 {[%emt 0:00:04]} Qb7 {[%emt 0:00:01]} 26. a5 {[%emt 0:00:12]} f5 {[%emt 0:00:04]} 27. axb6 {[%emt 0:00:07]} axb6 {[%emt 0:00:01] [#]} 28. Ra6 $1 {[%emt 0:00:01]} Kc7 $2 {[%emt 0:00:38][%mdl 8192]} (28... f4 $1 $11 {and Black has nothing to worry.}) 29. Rea1 $18 {[%emt 0:00:11]} Ra8 {[%emt 0:00:03] Repels Ra7} 30. c5 $2 {[%emt 0:00:00]} (30. Bb4) 30... bxc5 {[%emt 0:00:20][%csl Ob5] White has a strong passed pawn} 31. b6+ {[%emt 0:00:28] White attacks} Kc6 {[%emt 0:00:01]} 32. Ra7 {[%emt 0:00:00]} Rxa7 {[%emt 0:00:01]} 33. bxa7 {[%emt 0:00:02]} Kd7 {[%emt 0:00:02] [#]} (33... Kc7 $1 $14) 34. Qd1 {[%emt 0:00:06]} ({White has to play} 34. Bxg5 $1 $16 hxg5 35. h6) 34... Ra8 $11 {[%emt 0:00:03]} 35. Qa4+ {[%emt 0:00:02]} Ke6 {[%emt 0:00:04]} 36. Qc4+ {[%emt 0:00:32]} Qd5 {[%emt 0:00:04]} 37. Qa6 {[%emt 0:00:04][%mdl 1024] White has compensation.} e4 {[%emt 0:00:02][%cal Be5e4,Be4e3][%mdl 32]} 38. Re1 {[%emt 0:00:05]} (38. Kg1 $1 $14) 38... Kd7 {[%emt 0:00:19][%cal Oe4e3] The position is equal.} 39. Rb1 {[%emt 0:00:10]} e3 $1 {[%emt 0:00:02]} 40. Be1 {[%emt 0:00:18] Strongly threatening Rb7+.} f4 {[%emt 0:00:08] ...Bc7 is the strong threat.} 41. Rb7+ {[%emt 0:00:10]} Bc7 {[%emt 0:00:04]} 42. Ba5 $1 {[%emt 0:00:10]} fxg3+ {[%emt 0:00:05]} 43. fxg3 {[%emt 0:00:00]} Qa2+ {[%emt 0:00:01]} 44. Kh1 $1 {[%emt 0:00:45]} Qa1+ {[%emt 0:00:01]} 45. Kg2 {[%emt 0:00:07]} (45. Kh2 $5 Qa2+ $8 46. Kh1 Qa1+ 47. Kh2 $11) 45... Qa2+ {[%emt 0:00:03]} 46. Kh1 $1 {[%emt 0:00:51] Dancing on a razor blade.} Qa1+ {[%emt 0:00:01]} 47. Kg2 {[%emt 0:00:01]} (47. Kh2 $5 Qa2+ $8 48. Kh1 $11) 47... Qa2+ {[%emt 0:00:01]} 48. Kh1 $1 {[%emt 0:00:01] Blacks defense is rewarded with a draw.   Weighted Error Value: White=0.13 (very precise) /Black=0.20 (precise)   Loses game:     	---       	Black=1      Mistake:       	White=3     	Black=3      Inaccurate:     	White=3     	Black=3      OK:         	White=15    	Black=11     Best:        	White=3     	Black=8      Strong:       	White=6     	Black=1} 1/2-1/2

[Event "CCT Chessable Masters Playoffs 2025"]
[Site "Online"]
[Date "2025.02.19"]
[Round "3"]
[White "Erigaisi Arjun"]
[Black "Carlsen, Magnus"]
[Result "1-0"]
[Annotator "TA RC"]
[ECO "E25"]
[WhiteElo "2801"]
[BlackElo "2833"]
[PlyCount "105"]
[EventDate "2025.02.13"]
[EventType "k.o."]
[EventCountry "NET"]
[SourceTitle "playchess.com"]
[Source "ChessBase"]
[SourceQuality "1"]
[TimeControl "600"]

{[%evp 18,105,0,0,13,0,7,0,0,0,14,5,14,15,8,0,0,-58,-55,-57,-56,-62,-33,-49,-54,-66,0,-34,-13,-19,-22,-26,0,0,0,-85,-45,-39,0,-14,-6,-63,0,0,0,0,0,0,0,0,0,0,0,0,0,0,0,0,0,0,0,0,0,0,0,0,0,0,0,0,0,0,0,0,0,0,0,0,0,0,0,0,0,0,0,0,0,0,0,0]} 1. d4 {[%emt 0:00:00]} Nf6 {[%emt 0:00:05]} 2. c4 {[%emt 0:00:01]} e6 {[%emt 0:00:01]} 3. Nc3 {[%emt 0:00:01]} Bb4 {[%emt 0:00:02]} 4. f3 {[%emt 0:00:01]} d5 {[%emt 0:00:48]} 5. a3 {[%emt 0:00:01]} Bxc3+ {[%emt 0:00:00]} 6. bxc3 {[%emt 0:00:00]} c5 {[%emt 0:00:01]} 7. cxd5 {[%emt 0:00:01]} Nxd5 {[%emt 0:00:00]} 8. dxc5 {[%emt 0:00:01]} Qa5 {[%emt 0:00:01]} 9. e4 {[%emt 0:00:01]} Nf6 {[%emt 0:00:02]} 10. Be3 {[%emt 0:00:06]} O-O {[%emt 0:00:01][%cal Of6d7] E25: Nimzo-Indian: Sämisch: 5...c5 6 f3 d5 7 cxd5.} 11. Kf2 {[%emt 0:00:02]} Nfd7 {[%emt 0:00:34]} 12. a4 {[%emt 0:00:01]} Nxc5 {[%emt 0:00:11]} 13. Qd6 {[%emt 0:00:02]} Nba6 {[%emt 0:00:30] Black is weak on the dark squares} 14. Bxa6 {[%emt 0:01:34]} Nxa6 {[%emt 0:00:03]} 15. Ne2 {[%emt 0:00:01]} Rd8 {[%emt 0:00:38]} 16. Qg3 $146 {[%emt 0:00:01]} (16. Qe7 Bd7 17. Rhd1 Bc6 18. Nd4 Be8 19. Nb3 Qc7 20. Qxc7 Nxc7 21. Rxd8 Rxd8 22. Bxa7 {1-0 Golubka,P (2434)-Nguyen,A (2333) Bayern-chI Bank Hofmann 26th 2023 (6)}) 16... e5 {[%emt 0:00:13] Dodges Bd4} 17. h4 {[%emt 0:00:18]} (17. Rhd1 $11 Rxd1 18. Rxd1) 17... f6 {[%emt 0:00:44]} 18. Rhb1 {[%emt 0:01:02][%cal Oe3b6]} Qc7 {[%emt 0:00:07]} 19. Kg1 {[%emt 0:00:16]} Be6 {[%emt 0:00:04]} 20. Qf2 {[%emt 0:00:01][%cal Oa4a5]} b6 {[%emt 0:00:09]} 21. a5 {[%emt 0:00:01][%cal Ba4a5,Ba5a6][%mdl 32]} Nc5 {[%emt 0:00:02]} (21... bxa5 $15 22. Rb5 a4) 22. Bxc5 {[%emt 0:00:38]} bxc5 {[%emt 0:00:01]} 23. Ng3 {[%emt 0:00:25]} Rab8 {[%emt 0:00:02]} 24. a6 {[%emt 0:00:09]} Rxb1+ {[%emt 0:00:20]} 25. Rxb1 {[%emt 0:00:00]} Qa5 {[%emt 0:00:03][%csl LRa6,LRc3]} 26. h5 {[%emt 0:00:12]} (26. Rb7 $11 {keeps the balance.} Qxa6 27. Rc7) 26... h6 {[%emt 0:00:02]} (26... Qxa6 27. Qxc5 Kf7 28. Rb5 $16) 27. Kh2 {[%emt 0:00:43]} Kh7 {[%emt 0:00:04]} ({Of course not} 27... Qxa6 $6 28. Qxc5 Qa2 29. Qe7 Qxb1 30. Qxd8+ Kh7 31. Qe7 $16) 28. Rb7 {[%emt 0:00:39]} Qxa6 {[%emt 0:00:02]} 29. Re7 {[%emt 0:00:00]} ({White should play} 29. Rc7 $11) 29... Rd7 {[%emt 0:01:21]} (29... Qb6 $15) 30. Qxc5 $11 {[%emt 0:00:17] The position is equal.} Rxe7 {[%emt 0:00:06] Successful Defense Black} 31. Qxe7 {[%emt 0:00:00][%mdl 4096] Endgame KQB-KQN} Qc6 {[%emt 0:00:32]} 32. Qxa7 {[%emt 0:00:10]} Qxc3 {[%emt 0:00:01]} 33. Qe7 {[%emt 0:00:08]} Qc8 {[%emt 0:00:03]} 34. Nf1 {[%emt 0:00:04]} Qc1 {[%emt 0:00:07]} 35. Ng3 {[%emt 0:00:11]} Qc8 {[%emt 0:00:02]} 36. Ne2 {[%emt 0:00:08]} Qd7 {[%emt 0:00:10]} 37. Qxd7 {[%emt 0:00:05]} Bxd7 {[%emt 0:00:00] KB-KN} 38. Nc3 {[%emt 0:00:01]} Kg8 {[%emt 0:00:02]} 39. Nd5 {[%emt 0:00:04]} Kf7 {[%emt 0:00:01]} 40. Ne3 {[%emt 0:00:00]} Bb5 {[%emt 0:00:02]} 41. Nf5 {[%emt 0:00:04] [#] Black must now prevent Nd6+.} Bd7 {[%emt 0:00:01]} 42. Ne3 {[%emt 0:00:01]} g6 {[%emt 0:00:06]} 43. hxg6+ {[%emt 0:00:03]} Kxg6 {[%emt 0:00:00]} 44. g4 {[%emt 0:00:00]} h5 {[%emt 0:00:01]} 45. gxh5+ {[%emt 0:00:01]} Kxh5 {[%emt 0:00:00]} 46. Kg3 {[%emt 0:00:00]} Kg5 {[%emt 0:00:01]} 47. Kf2 {[%emt 0:00:01]} f5 {[%emt 0:00:01]} 48. exf5 {[%emt 0:00:00]} Bxf5 {[%emt 0:00:01]} 49. Nxf5 {[%emt 0:00:00]} Kxf5 {[%emt 0:00:01]} 50. Ke3 {[%emt 0:00:00]} Kf6 {[%emt 0:00:00]} 51. Ke4 {[%emt 0:00:00]} Ke6 {[%emt 0:00:01]} 52. f4 {[%emt 0:00:01]} exf4 {[%emt 0:00:00]} 53. Kxf4 {[%emt 0:00:00] Weighted Error Value: White=0.10 (very precise) /Black=0.10 (very precise)   Mistake:       	White=3     	Black=2      Inaccurate:     	White=1     	Black=3      OK:         	White=17    	Black=15     Best:        	White=1     	Black=2} 1-0

[Event "CCT Chessable Masters Playoffs 2025"]
[Site "Online"]
[Date "2025.02.19"]
[Round "3"]
[White "Firouzja, Alireza"]
[Black "Nakamura, Hikaru"]
[Result "0-1"]
[Annotator "TA"]
[ECO "C54"]
[WhiteElo "2760"]
[BlackElo "2802"]
[PlyCount "70"]
[EventDate "2025.02.13"]
[EventType "k.o."]
[EventCountry "NET"]
[SourceTitle "playchess.com"]
[Source "ChessBase"]
[SourceQuality "1"]
[TimeControl "600"]

{[%evp 10,70,32,30,46,42,37,33,32,41,46,27,35,25,20,20,25,16,16,17,25,21,26,4,-4,0,0,0,0,0,0,0,0,0,0,0,89,72,109,103,70,83,131,132,237,53,176,138,140,106,69,18,5,0,0,0,0,0,0,-1103,-1079,-29997,-1710]} 1. e4 {[%emt 0:00:00]} e5 {[%emt 0:00:00]} 2. Nf3 {[%emt 0:00:01]} Nc6 {[%emt 0:00:01]} 3. Bc4 {[%emt 0:00:01]} Nf6 {[%emt 0:03:59]} 4. d3 {[%emt 0:00:01]} h6 {[%emt 0:00:01]} 5. c3 {[%emt 0:00:01]} Bc5 {[%emt 0:00:00]} 6. b4 {[%emt 0:00:00]} Be7 {[%emt 0:00:00] C54: Giuoco Piano: 4 c3 Nf6, main lines with 5 d4 and 5 d3.} 7. Qb3 {[%emt 0:00:01] is more profitable than 7.b5 at the moment.} O-O {[%emt 0:00:00]} 8. a4 {[%emt 0:00:01]} d6 {[%emt 0:00:01] White is slightly better.} 9. O-O {[%emt 0:00:01]} Nb8 {[%emt 0:00:00][%cal Bc6b8,Bb8d7,Bd7b6][%mdl 32]} 10. Qa2 {[%emt 0:00:06]} c6 {[%emt 0:00:00]} 11. Bb3 {[%emt 0:00:00]} a5 $146 {[%emt 0:00:01]} (11... Nbd7 12. a5 d5 13. Re1 Re8 14. Nbd2 Bf8 15. exd5 cxd5 16. Bxd5 Nxd5 17. Qxd5 Qc7 {0-1 Firouzja,A (2737)-Nakamura,H (2794) Bullet Chess Winners blitz 2024 (6.2)}) 12. b5 {[%emt 0:00:01]} Nbd7 {[%emt 0:00:00]} 13. Ba3 {[%emt 0:00:01]} Nh5 {[%emt 0:00:01]} 14. g3 {[%emt 0:00:02] Prevents Nf4.} Nb6 {[%emt 0:00:00]} 15. Re1 {[%emt 0:00:03]} Bh3 {[%emt 0:00:01]} 16. Kh1 {[%emt 0:00:03]} Nf6 {[%emt 0:00:00]} 17. Ng1 {[%emt 0:00:00]} Bg4 {[%emt 0:00:01]} 18. bxc6 {[%emt 0:00:01]} bxc6 {[%emt 0:00:01]} 19. f4 {[%emt 0:00:01]} exf4 {[%emt 0:00:01]} 20. gxf4 {[%emt 0:00:03][%cal Bg3f4,Bf4f5][%mdl 32]} d5 {[%emt 0:00:01]} 21. Qg2 {[%emt 0:00:45]} dxe4 {[%emt 0:00:20]} 22. dxe4 {[%emt 0:00:08]} Be6 {[%emt 0:00:01]} (22... Bxa3 $11 {remains equal.} 23. Nxa3 Be6) 23. Bc2 $1 $16 {[%emt 0:01:06]} Re8 {[%emt 0:00:06]} 24. f5 {[%emt 0:00:24]} Bc4 {[%emt 0:00:04]} 25. Nf3 {[%emt 0:00:36]} Nfd7 {[%emt 0:00:21] [#]} ({Black should play} 25... Kh8) 26. Bc1 $1 {[%emt 0:00:50]} Kh7 {[%emt 0:00:01] [#]} (26... Kh8 $16) 27. e5 $2 {[%emt 0:00:23]} (27. Bf4 $1 $18) 27... Kh8 {[%emt 0:00:42]} (27... Bf6 $1 $14 28. exf6 Rxe1+ 29. Nxe1 Bd5) 28. Rg1 {[%emt 0:00:14][%csl Gg1][%cal Rg2g7]} Rg8 {[%emt 0:00:04]} 29. Nbd2 {[%emt 0:01:16] Nxc4 would now be deadly.} Bd5 {[%emt 0:00:01][%cal Od7e5]} 30. Ne4 {[%emt 0:00:48]} (30. Re1 $14) 30... Nc5 $11 {[%emt 0:00:05]} 31. Nxc5 {[%emt 0:00:24]} Bxc5 {[%emt 0:00:00]} 32. Re1 {[%emt 0:00:05]} Nc4 {[%emt 0:00:06]} 33. Bf4 {[%emt 0:00:03]} Rb8 {[%emt 0:00:02] White must now prevent ...Rb2.} 34. Qh3 $2 {[%emt 0:00:27][%mdl 8192] [#]} (34. Be4 $11) 34... Qh4 $1 $19 {[%emt 0:00:16][%mdl 512]} 35. Kg2 {[%emt 0:00:20]} (35. Qg3 Qxg3) 35... Qxf4 {[%emt 0:00:02] What a bad dream for White.   Weighted Error Value: White=0.41/Black=0.20 (precise)   Loses game:     	White=1     	---        Missed win:     	White=1     	---        Mistake:       	White=1     	Black=4      Inaccurate:     	White=1     	Black=1      OK:         	White=12    	Black=15     Best:        	---       	Black=1      Strong:       	White=1     	---        Brilliant:      	---       	Black=1} (35... Qf2+ $142 36. Kh1 Bxf3+ 37. Qxf3 Qxf3#) 0-1

[Event "CCT Chessable Masters Playoffs 2025"]
[Site "Online"]
[Date "2025.02.19"]
[Round "4"]
[White "Carlsen, Magnus"]
[Black "Nakamura, Hikaru"]
[Result "1-0"]
[Annotator "TA"]
[ECO "D00"]
[WhiteElo "2833"]
[BlackElo "2802"]
[PlyCount "93"]
[EventDate "2025.02.13"]
[EventType "k.o."]
[EventCountry "NET"]
[SourceTitle "playchess.com"]
[Source "ChessBase"]
[SourceQuality "1"]
[TimeControl "600"]

{[%evp 9,93,-19,10,-22,-3,-8,20,0,0,0,0,0,0,0,0,-2,0,0,0,0,204,215,198,200,322,325,328,320,309,314,311,294,313,327,321,254,256,244,350,278,288,279,316,273,267,265,279,283,277,268,303,286,375,289,295,295,351,350,395,393,410,395,395,393,443,437,450,453,473,449,488,483,465,466,504,499,508,509,509,510,510,503,512,484,827,528]} 1. d4 {[%emt 0:00:02]} d5 {[%emt 0:00:02]} 2. Nc3 {[%emt 0:00:01]} Nf6 {[%emt 0:00:06]} 3. Bf4 {[%emt 0:00:02]} a6 {[%emt 0:00:05]} 4. e3 {[%emt 0:00:01]} h6 {[%emt 0:00:03]} 5. h4 {[%emt 0:00:02]} e6 {[%emt 0:00:05]} 6. Nf3 {[%emt 0:00:44] D00: 1 d4 d5: Unusual lines.} b6 $146 {[%emt 0:00:18]} (6... c5 7. Be2 Nc6 8. Ne5 Bd6 9. Qd2 Bxe5 10. Bxe5 Nxe5 11. dxe5 Nd7 12. f4 b5 {0-1 Kucharski,B (1983)-Kacprzak,K (2317) POL-chT 1st League 2023 (4.8)}) 7. Ne5 {[%emt 0:00:02]} Nfd7 {[%emt 0:00:07]} 8. Qf3 {[%emt 0:00:44][%cal Oe5f7] [#] The position is equal.} Nxe5 {[%emt 0:00:07]} 9. Bxe5 {[%emt 0:00:01]} Nd7 {[%emt 0:00:16]} 10. Bf4 {[%emt 0:00:01]} c5 {[%emt 0:00:04]} 11. Qg3 {[%emt 0:00:01]} Bb7 {[%emt 0:00:06]} 12. O-O-O {[%emt 0:01:00][%cal Oe3e4]} Rc8 {[%emt 0:00:42]} 13. e4 {[%emt 0:00:08] [#] Hoping for exd5.} cxd4 {[%emt 0:00:02]} 14. exd5 {[%emt 0:00:13]} Nf6 $2 {[%emt 0:00:29] White stays focused until the end.} (14... dxc3 15. dxe6 cxb2+ 16. Kb1 $18) (14... Qf6 $1 $11 {and Black stays safe.} 15. Ne4 Qf5) 15. dxe6 $18 {[%emt 0:00:26]} ({Don't do} 15. Rxd4 $6 Nh5 16. Qf3 Bc5 $16) 15... Nh5 {[%emt 0:02:32]} 16. Qg4 {[%emt 0:00:01]} Nxf4 {[%emt 0:00:03]} (16... Nf6 $142 17. Qf5 fxe6 18. Qg6+ (18. Qxe6+ Qe7 $16) 18... Ke7) 17. exf7+ {[%emt 0:00:01]} ({Not} 17. Qxf4 fxe6 18. Be2 (18. Rxd4 Qf6 $16) (18. Qxd4 Qxd4 19. Rxd4 Bc5 $14) 18... Bc5 $16) 17... Kxf7 {[%emt 0:00:00] Threatens to win with ...Qf6.} 18. Qxf4+ {[%emt 0:00:01]} Qf6 {[%emt 0:00:00]} 19. Rxd4 {[%emt 0:00:05][%cal Bd1d4,Bd4f4,Bf4f5][%mdl 32]} Qxf4+ {[%emt 0:00:36]} 20. Rxf4+ {[%emt 0:00:01]} Ke8 {[%emt 0:00:00][%cal Bf7e8,Be8d8,Bd8c8][%mdl 32]} 21. Bd3 {[%emt 0:00:15]} Rc7 {[%emt 0:00:18]} 22. Re1+ {[%emt 0:00:15]} Kd8 {[%emt 0:00:01]} 23. Be4 {[%emt 0:00:08]} Bc8 {[%emt 0:00:56]} (23... Bxe4 $142 24. Rfxe4 (24. Nxe4 Kc8 $18) (24. Rexe4 Bc5 $18) 24... Bc5) 24. Bf5 {[%emt 0:00:08]} Bxf5 {[%emt 0:00:34]} 25. Rxf5 {[%emt 0:00:01]} Bc5 {[%emt 0:00:00]} 26. Ne4 {[%emt 0:00:07]} Be7 {[%emt 0:00:01]} 27. g3 {[%emt 0:00:07]} Kc8 {[%emt 0:00:01]} 28. Re5 {[%emt 0:00:02]} Rd8 {[%emt 0:00:01]} 29. Rd1 {[%emt 0:00:03]} Rf8 {[%emt 0:00:02]} 30. c3 {[%emt 0:00:04]} g5 {[%emt 0:00:02]} 31. hxg5 {[%emt 0:00:01]} hxg5 {[%emt 0:00:00]} 32. Rd2 {[%emt 0:00:05]} g4 {[%emt 0:00:02]} 33. Re6 {[%emt 0:00:00]} Kb7 {[%emt 0:00:03]} 34. Rg6 {[%emt 0:00:01] Dodges Rg8} b5 {[%emt 0:00:04]} 35. Rxg4 {[%emt 0:00:01]} b4 {[%emt 0:00:00]} 36. Kc2 {[%emt 0:00:01]} bxc3 {[%emt 0:00:01]} 37. bxc3 {[%emt 0:00:01] White is clearly winning.} (37. Nxc3 Bc5 38. f4 Ka7 $18) 37... Rf5 {[%emt 0:00:02]} 38. a4 {[%emt 0:00:11]} Ra5 {[%emt 0:00:01]} 39. Kb3 {[%emt 0:00:09]} Ka7 {[%emt 0:00:01]} 40. Rd4 {[%emt 0:00:03]} Rb7+ {[%emt 0:00:00]} 41. Kc2 {[%emt 0:00:01]} Ba3 {[%emt 0:00:01]} 42. Kd3 {[%emt 0:00:03]} Rh5 {[%emt 0:00:04]} 43. Rg6 {[%emt 0:00:08]} Rh1 {[%emt 0:00:01]} 44. Ke2 {[%emt 0:00:03]} Ra1 {[%emt 0:00:03]} 45. Rc4 {[%emt 0:00:02]} Re7 {[%emt 0:00:03]} 46. Kf3 {[%emt 0:00:02]} Bb2 {[%emt 0:00:03]} (46... Rd1 $142 47. Rcc6 Rd3+ 48. Ke2 Rd6 49. Rgxd6 Bxd6) 47. Nc5 {[%emt 0:00:03] Weighted Error Value: White=0.10 (very precise) /Black=0.34  Loses game:     	---       	Black=1      Mistake:       	---       	Black=3      Inaccurate:     	White=1     	Black=2      OK:         	White=23    	Black=8      Best:        	White=1     	Black=3} 1-0